[Event "*** Titled Tuesday Blitz"]
[Site "Chess.com"]
[Date "2020.12.01"]
[Round "6"]
[White "InitiatingASC"]
[Black "nitpicker"]
[Result "1-0"]
[WhiteElo "2415"]
[BlackElo "2254"]
[TimeControl "180+1"]
[EndTime "11:05:16 PST"]
[Termination "InitiatingASC won on time"]

1. Nf3 {[%clk 0:03:00.9]} 1... Nf6 {[%clk 0:02:59.4]} 2. g3 {[%clk 0:03:00.6]}
2... b6 {[%clk 0:02:55]} 3. Bg2 {[%clk 0:03:00.5]} 3... Bb7 {[%clk 0:02:55.5]}
4. O-O {[%clk 0:03:01]} 4... e6 {[%clk 0:02:52]} 5. d3 {[%clk 0:03:01.6]} 5...
c5 {[%clk 0:02:47]} 6. Nbd2 {[%clk 0:03:01.6]} 6... g6 {[%clk 0:02:38.5]} 7. a3
{[%clk 0:03:02]} 7... Bg7 {[%clk 0:02:28.2]} 8. Rb1 {[%clk 0:03:01.8]} 8... O-O
{[%clk 0:02:26.1]} 9. b4 {[%clk 0:03:01.6]} 9... d6 {[%clk 0:02:26.4]} 10. Bb2
{[%clk 0:03:01.4]} 10... Nbd7 {[%clk 0:02:25.1]} 11. e4 {[%clk 0:03:01.2]} 11...
Qc7 {[%clk 0:02:24.6]} 12. c4 {[%clk 0:02:59.9]} 12... Rfd8 {[%clk 0:02:13.7]}
13. Re1 {[%clk 0:02:57]} 13... d5 {[%clk 0:02:09]} 14. Qe2 {[%clk 0:02:45.4]}
14... Rac8 {[%clk 0:02:00.9]} 15. e5 {[%clk 0:02:34.8]} 15... Ne8 {[%clk
0:01:58.5]} 16. d4 {[%clk 0:02:35]} 16... dxc4 {[%clk 0:01:51.7]} 17. Qxc4
{[%clk 0:02:30.6]} 17... cxd4 {[%clk 0:01:40.7]} 18. Qxc7 {[%clk 0:02:14.3]}
18... Rxc7 {[%clk 0:01:40.6]} 19. Bxd4 {[%clk 0:02:15]} 19... Rc2 {[%clk
0:01:30.4]} 20. Nf1 {[%clk 0:02:04.5]} 20... Rdc8 {[%clk 0:00:59.1]} 21. Ne3
{[%clk 0:01:57.7]} 21... Ra2 {[%clk 0:00:58.4]} 22. Rb3 {[%clk 0:01:34.2]} 22...
Bxf3 {[%clk 0:00:56.1]} 23. Bxf3 {[%clk 0:01:31.7]} 23... Nxe5 {[%clk
0:00:56.1]} 24. Bb7 {[%clk 0:01:28.8]} 24... Rc7 {[%clk 0:00:48.2]} 25. Bg2
{[%clk 0:00:57.2]} 25... Nc4 {[%clk 0:00:38.2]} 26. Bxg7 {[%clk 0:00:46.5]}
26... Kxg7 {[%clk 0:00:35.6]} 27. Nxc4 {[%clk 0:00:16.2]} 27... Rxc4 {[%clk
0:00:34.3]} 28. Rd1 {[%clk 0:00:13.2]} 28... Rcc2 {[%clk 0:00:32.7]} 29. Rf3
{[%clk 0:00:13.4]} 29... Nf6 {[%clk 0:00:29.4]} 30. Bf1 {[%clk 0:00:12.5]} 30...
Ne4 {[%clk 0:00:18.6]} 31. Bd3 {[%clk 0:00:12.6]} 31... Rxf2 {[%clk 0:00:06.2]}
32. Bxe4 {[%clk 0:00:12.4]} 32... Rg2+ {[%clk 0:00:05.2]} 33. Kf1 {[%clk
0:00:11.1]} 33... Rxh2 {[%clk 0:00:05.2]} 34. Rfd3 {[%clk 0:00:09.6]} 34... Rh3
{[%clk 0:00:03.9]} 35. Bg2 {[%clk 0:00:08.9]} 35... Rh5 {[%clk 0:00:03.3]} 36.
Kg1 {[%clk 0:00:07.4]} 36... Rf5 {[%clk 0:00:03.1]} 37. Rf1 {[%clk 0:00:05.3]}
37... Rxf1+ {[%clk 0:00:01.7]} 38. Kxf1 {[%clk 0:00:05.6]} 38... Kf6 {[%clk
0:00:01.1]} 39. Bc6 {[%clk 0:00:05.5]} 1-0

[Event "*** Titled Tuesday Blitz"]
[Site "Chess.com"]
[Date "2020.12.01"]
[Round "6"]
[White "scoopbh"]
[Black "hleol"]
[Result "0-1"]
[WhiteElo "2079"]
[BlackElo "2330"]
[TimeControl "180+1"]
[EndTime "11:05:17 PST"]
[Termination "hleol won on time"]

1. e4 {[%clk 0:03:00.9]} 1... e6 {[%clk 0:02:58]} 2. d4 {[%clk 0:03:00.5]} 2...
d5 {[%clk 0:02:57.1]} 3. Nc3 {[%clk 0:03:00.3]} 3... Bb4 {[%clk 0:02:55.4]} 4.
e5 {[%clk 0:03:00.4]} 4... c5 {[%clk 0:02:54.4]} 5. a3 {[%clk 0:02:59.3]} 5...
Bxc3+ {[%clk 0:02:52.9]} 6. bxc3 {[%clk 0:02:59.6]} 6... Qa5 {[%clk 0:02:53.8]}
7. Bd2 {[%clk 0:02:55.1]} 7... Qa4 {[%clk 0:02:54]} 8. Qg4 {[%clk 0:02:47.1]}
8... g6 {[%clk 0:02:40.6]} 9. Nf3 {[%clk 0:02:39.6]} 9... Qxc2 {[%clk 0:02:31]}
10. Be2 {[%clk 0:02:17.6]} 10... Qe4 {[%clk 0:02:22.6]} 11. Qxe4 {[%clk
0:02:02.1]} 11... dxe4 {[%clk 0:02:23.5]} 12. Ng5 {[%clk 0:02:02.1]} 12... cxd4
{[%clk 0:02:22.1]} 13. cxd4 {[%clk 0:01:54.1]} 13... f5 {[%clk 0:02:11.6]} 14.
exf6 {[%clk 0:01:47.2]} 14... Nxf6 {[%clk 0:02:10.4]} 15. O-O {[%clk 0:01:39.2]}
15... h6 {[%clk 0:02:06]} 16. Nh3 {[%clk 0:01:34.4]} 16... Kf7 {[%clk
0:02:05.7]} 17. Bc4 {[%clk 0:01:14.9]} 17... Nc6 {[%clk 0:02:01.1]} 18. Bc3
{[%clk 0:01:12.4]} 18... Nd5 {[%clk 0:01:56.3]} 19. Bb2 {[%clk 0:01:02.2]} 19...
g5 {[%clk 0:01:45.8]} 20. f3 {[%clk 0:00:51.8]} 20... Ne3 {[%clk 0:01:29.3]} 21.
fxe4+ {[%clk 0:00:25.4]} 21... Nxf1 {[%clk 0:01:07]} 22. Rxf1+ {[%clk
0:00:26.3]} 22... Ke7 {[%clk 0:01:07.9]} 23. d5 {[%clk 0:00:25]} 23... Rf8
{[%clk 0:01:02.4]} 24. Rxf8 {[%clk 0:00:17.5]} 24... Kxf8 {[%clk 0:01:03.3]} 25.
dxc6 {[%clk 0:00:18.1]} 25... bxc6 {[%clk 0:01:02.9]} 26. Be5 {[%clk 0:00:16.5]}
26... a5 {[%clk 0:00:59.8]} 27. Nf2 {[%clk 0:00:16.4]} 27... a4 {[%clk 0:01:00]}
28. Ng4 {[%clk 0:00:16.2]} 28... Ra5 {[%clk 0:00:56.2]} 29. Bd4 {[%clk
0:00:13.7]} 29... h5 {[%clk 0:00:47.9]} 30. Nf6 {[%clk 0:00:09.8]} 30... e5
{[%clk 0:00:45.5]} 31. Bc3 {[%clk 0:00:08.7]} 31... Ra7 {[%clk 0:00:42]} 32.
Bxe5 {[%clk 0:00:07]} 32... Rb7 {[%clk 0:00:38.7]} 33. h3 {[%clk 0:00:05.8]}
33... Rb1+ {[%clk 0:00:38.1]} 34. Kh2 {[%clk 0:00:05.5]} 34... h4 {[%clk
0:00:37.9]} 35. Nh7+ {[%clk 0:00:04.6]} 35... Ke8 {[%clk 0:00:36.3]} 36. Nxg5
{[%clk 0:00:04.9]} 36... Re1 {[%clk 0:00:34.4]} 37. Bf6 {[%clk 0:00:04.2]} 37...
c5 {[%clk 0:00:32.3]} 38. e5 {[%clk 0:00:04.2]} 38... Bb7 {[%clk 0:00:32.1]} 39.
Bf7+ {[%clk 0:00:04]} 39... Kd7 {[%clk 0:00:28.8]} 40. e6+ {[%clk 0:00:04.5]}
40... Kc7 {[%clk 0:00:28.4]} 41. e7 {[%clk 0:00:04.7]} 41... Bc6 {[%clk
0:00:28.7]} 42. Ne6+ {[%clk 0:00:01.9]} 42... Kb6 {[%clk 0:00:26.9]} 0-1

[Event "*** Titled Tuesday Blitz"]
[Site "Chess.com"]
[Date "2020.12.01"]
[Round "6"]
[White "dhaessel"]
[Black "GodDMuhammad"]
[Result "0-1"]
[WhiteElo "1863"]
[BlackElo "2277"]
[TimeControl "180+1"]
[EndTime "11:05:20 PST"]
[Termination "GodDMuhammad won by checkmate"]

1. d4 {[%clk 0:03:00.9]} 1... Nf6 {[%clk 0:02:57.1]} 2. c4 {[%clk 0:02:59.2]}
2... e5 {[%clk 0:02:56.5]} 3. dxe5 {[%clk 0:02:57.3]} 3... Ng4 {[%clk
0:02:51.8]} 4. e3 {[%clk 0:02:56.5]} 4... Nxe5 {[%clk 0:02:49.7]} 5. Nh3 {[%clk
0:02:57]} 5... Nbc6 {[%clk 0:02:35.6]} 6. Nf4 {[%clk 0:02:56]} 6... Bb4+ {[%clk
0:02:35.2]} 7. Bd2 {[%clk 0:02:54.2]} 7... Bxd2+ {[%clk 0:02:33.9]} 8. Qxd2
{[%clk 0:02:55.1]} 8... d6 {[%clk 0:02:33.7]} 9. Nc3 {[%clk 0:02:54.2]} 9... Bf5
{[%clk 0:02:31.9]} 10. Be2 {[%clk 0:02:51.3]} 10... O-O {[%clk 0:02:21.5]} 11.
O-O {[%clk 0:02:49.1]} 11... h6 {[%clk 0:02:19.6]} 12. h3 {[%clk 0:02:48.2]}
12... Re8 {[%clk 0:02:05]} 13. b3 {[%clk 0:02:47.7]} 13... a6 {[%clk 0:02:04.6]}
14. Rad1 {[%clk 0:02:45]} 14... Qg5 {[%clk 0:02:02.4]} 15. Kh2 {[%clk
0:02:42.1]} 15... Rad8 {[%clk 0:01:58]} 16. Nfd5 {[%clk 0:02:16.5]} 16... Qh4
{[%clk 0:01:30.8]} 17. Nxc7 {[%clk 0:02:08.3]} 17... Re7 {[%clk 0:01:29.7]} 18.
N7d5 {[%clk 0:02:06.8]} 18... Re6 {[%clk 0:01:29.8]} 19. Nf4 {[%clk 0:02:05.7]}
19... Ree8 {[%clk 0:01:25.2]} 20. g3 {[%clk 0:01:49.4]} 20... Qe7 {[%clk
0:01:21.7]} 21. Ncd5 {[%clk 0:01:47.4]} 21... Qd7 {[%clk 0:01:20.5]} 22. Nb6
{[%clk 0:01:45.3]} 22... Qc7 {[%clk 0:01:19.9]} 23. Nfd5 {[%clk 0:01:44.3]}
23... Qb8 {[%clk 0:01:19.7]} 24. f4 {[%clk 0:01:33]} 24... Ng6 {[%clk
0:01:14.5]} 25. Bf3 {[%clk 0:01:30.6]} 25... Be4 {[%clk 0:01:14.3]} 26. Bxe4
{[%clk 0:01:27.9]} 26... Rxe4 {[%clk 0:01:15.2]} 27. Qd3 {[%clk 0:01:23.6]}
27... Rde8 {[%clk 0:01:14.8]} 28. h4 {[%clk 0:01:06.9]} 28... f5 {[%clk
0:01:05.9]} 29. Rf3 {[%clk 0:01:02.5]} 29... h5 {[%clk 0:00:58.7]} 30. Nc3
{[%clk 0:01:01.2]} 30... Nh8 {[%clk 0:00:43.7]} 31. Nbd5 {[%clk 0:00:56.6]}
31... Nf7 {[%clk 0:00:41.2]} 32. Qb1 {[%clk 0:00:48.2]} 32... Nh6 {[%clk
0:00:33.6]} 33. Nxe4 {[%clk 0:00:45.5]} 33... fxe4 {[%clk 0:00:34.5]} 34. Rff1
{[%clk 0:00:40.4]} 34... Ng4+ {[%clk 0:00:34.3]} 35. Kg2 {[%clk 0:00:39.2]}
35... Ne7 {[%clk 0:00:30.9]} 36. Qxe4 {[%clk 0:00:35.5]} 36... Nxd5 {[%clk
0:00:29.5]} 37. Qxd5+ {[%clk 0:00:35.4]} 37... Kf8 {[%clk 0:00:29.9]} 38. Qf5+
{[%clk 0:00:28.4]} 38... Kg8 {[%clk 0:00:27.9]} 39. Qd5+ {[%clk 0:00:28.1]}
39... Kf8 {[%clk 0:00:27.2]} 40. Qxh5 {[%clk 0:00:26]} 40... Nxe3+ {[%clk
0:00:26.5]} 41. Kh2 {[%clk 0:00:23.6]} 41... Nxf1+ {[%clk 0:00:25.6]} 42. Rxf1
{[%clk 0:00:22.9]} 42... Qc7 {[%clk 0:00:24.6]} 43. Rd1 {[%clk 0:00:20.6]} 43...
Qb6 {[%clk 0:00:20.5]} 44. Qh8+ {[%clk 0:00:18.9]} 44... Kf7 {[%clk 0:00:20.5]}
45. Qh5+ {[%clk 0:00:18.6]} 45... Kf8 {[%clk 0:00:20.9]} 46. Qf3 {[%clk
0:00:17.8]} 46... Re3 {[%clk 0:00:18.8]} 47. Qf2 {[%clk 0:00:17.7]} 47... d5
{[%clk 0:00:18.1]} 48. Re1 {[%clk 0:00:16.1]} 48... d4 {[%clk 0:00:17.5]} 49.
Rxe3 {[%clk 0:00:16.2]} 49... dxe3 {[%clk 0:00:18.4]} 50. Qe2 {[%clk 0:00:16.7]}
50... Qd4 {[%clk 0:00:18.9]} 51. Kg2 {[%clk 0:00:16.7]} 51... Qe4+ {[%clk
0:00:19.3]} 52. Kf1 {[%clk 0:00:16]} 52... Qh1# {[%clk 0:00:19.1]} 0-1

[Event "*** Titled Tuesday Blitz"]
[Site "Chess.com"]
[Date "2020.12.01"]
[Round "6"]
[White "GameOverBro"]
[Black "Homino"]
[Result "0-1"]
[WhiteElo "2513"]
[BlackElo "2397"]
[TimeControl "180+1"]
[EndTime "11:05:21 PST"]
[Termination "Homino won by resignation"]

1. e4 {[%clk 0:02:56]} 1... c5 {[%clk 0:02:59.7]} 2. Ne2 {[%clk 0:02:55.3]} 2...
Nc6 {[%clk 0:02:59.3]} 3. Nbc3 {[%clk 0:02:53.8]} 3... g6 {[%clk 0:02:59.4]} 4.
d4 {[%clk 0:02:53.3]} 4... cxd4 {[%clk 0:02:59.2]} 5. Nxd4 {[%clk 0:02:54.2]}
5... Bg7 {[%clk 0:02:59.2]} 6. Nde2 {[%clk 0:02:53.2]} 6... Nf6 {[%clk
0:02:58.8]} 7. g3 {[%clk 0:02:52.4]} 7... O-O {[%clk 0:02:58.8]} 8. Bg2 {[%clk
0:02:52.5]} 8... d6 {[%clk 0:02:56.9]} 9. O-O {[%clk 0:02:51.9]} 9... a5 {[%clk
0:02:55.1]} 10. Nd5 {[%clk 0:02:45.9]} 10... a4 {[%clk 0:02:50.5]} 11. a3 {[%clk
0:02:40.1]} 11... Be6 {[%clk 0:02:48.1]} 12. Nef4 {[%clk 0:02:31.7]} 12... Bd7
{[%clk 0:02:41.8]} 13. Re1 {[%clk 0:02:21.2]} 13... Rc8 {[%clk 0:02:16.5]} 14.
h3 {[%clk 0:02:15.8]} 14... Ne5 {[%clk 0:02:10.1]} 15. c3 {[%clk 0:01:42]} 15...
Nc4 {[%clk 0:02:02.7]} 16. Nxf6+ {[%clk 0:01:33.3]} 16... Bxf6 {[%clk
0:02:00.6]} 17. Nd5 {[%clk 0:01:34.2]} 17... Bg7 {[%clk 0:01:59.2]} 18. Qc2
{[%clk 0:01:28.3]} 18... Re8 {[%clk 0:01:55.7]} 19. Bg5 {[%clk 0:01:21.1]} 19...
b5 {[%clk 0:01:50.3]} 20. Rad1 {[%clk 0:01:19.2]} 20... Be6 {[%clk 0:01:43.6]}
21. Nb4 {[%clk 0:01:17.5]} 21... Ne5 {[%clk 0:01:35.2]} 22. f4 {[%clk
0:01:13.3]} 22... Bb3 {[%clk 0:01:32.9]} 23. Qe2 {[%clk 0:01:06.4]} 23... Bxd1
{[%clk 0:01:30.7]} 24. Rxd1 {[%clk 0:01:07.3]} 24... Nc4 {[%clk 0:01:30.4]} 25.
e5 {[%clk 0:01:04.3]} 25... Qb6+ {[%clk 0:01:29]} 26. Kh2 {[%clk 0:01:03.7]}
26... dxe5 {[%clk 0:01:26.9]} 27. Nd5 {[%clk 0:01:03.5]} 27... Qe6 {[%clk
0:01:25]} 28. Nxe7+ {[%clk 0:00:57.4]} 28... Rxe7 {[%clk 0:01:05.4]} 29. Bd5
{[%clk 0:00:57.2]} 29... Qf5 {[%clk 0:00:58.1]} 30. Bxe7 {[%clk 0:00:53.8]}
30... exf4 {[%clk 0:00:57.1]} 31. Rf1 {[%clk 0:00:33.5]} 31... fxg3+ {[%clk
0:00:53.6]} 32. Kxg3 {[%clk 0:00:27]} 32... Qxd5 {[%clk 0:00:53.2]} 33. Bh4
{[%clk 0:00:06]} 33... Be5+ {[%clk 0:00:51.2]} 34. Kf2 {[%clk 0:00:06.3]} 34...
Nd6 {[%clk 0:00:43.6]} 35. Kg1 {[%clk 0:00:05.7]} 35... Ne4 {[%clk 0:00:38.4]}
36. Qf3 {[%clk 0:00:05.4]} 36... f5 {[%clk 0:00:36.5]} 37. Bf2 {[%clk
0:00:04.5]} 37... Rd8 {[%clk 0:00:30.6]} 38. Be3 {[%clk 0:00:04.1]} 38... Qd3
{[%clk 0:00:26.6]} 39. h4 {[%clk 0:00:04.2]} 39... Qc2 {[%clk 0:00:24.7]} 40.
Re1 {[%clk 0:00:03.8]} 40... Qh2+ {[%clk 0:00:22.2]} 41. Kf1 {[%clk 0:00:03.8]}
41... Ng3+ {[%clk 0:00:22.7]} 0-1

[Event "*** Titled Tuesday Blitz"]
[Site "Chess.com"]
[Date "2020.12.01"]
[Round "6"]
[White "GregShahade"]
[Black "jefferyx"]
[Result "0-1"]
[WhiteElo "2701"]
[BlackElo "2917"]
[TimeControl "180+1"]
[EndTime "11:05:22 PST"]
[Termination "jefferyx won by checkmate"]

1. e4 {[%clk 0:03:00.9]} 1... Nf6 {[%clk 0:02:56.6]} 2. e5 {[%clk 0:03:00.9]}
2... Nd5 {[%clk 0:02:57.1]} 3. d4 {[%clk 0:03:01.4]} 3... d6 {[%clk 0:02:57.7]}
4. Nf3 {[%clk 0:03:02]} 4... g6 {[%clk 0:02:57.9]} 5. Bc4 {[%clk 0:03:01.6]}
5... c6 {[%clk 0:02:58.2]} 6. O-O {[%clk 0:03:00.2]} 6... Bg7 {[%clk 0:02:58.7]}
7. exd6 {[%clk 0:03:00.2]} 7... Qxd6 {[%clk 0:02:59.6]} 8. h3 {[%clk 0:02:58.8]}
8... O-O {[%clk 0:02:59.6]} 9. Nbd2 {[%clk 0:02:58.4]} 9... Nd7 {[%clk
0:02:58.1]} 10. Re1 {[%clk 0:02:55.6]} 10... a5 {[%clk 0:02:55.6]} 11. Ne4
{[%clk 0:02:50]} 11... Qc7 {[%clk 0:02:55.3]} 12. c3 {[%clk 0:02:47.6]} 12... a4
{[%clk 0:02:51.1]} 13. Bg5 {[%clk 0:02:46.3]} 13... N7b6 {[%clk 0:02:51.2]} 14.
Bd3 {[%clk 0:02:42.8]} 14... Bf5 {[%clk 0:02:47.4]} 15. Qd2 {[%clk 0:02:39.4]}
15... Bxe4 {[%clk 0:02:42.8]} 16. Bxe4 {[%clk 0:02:36.5]} 16... e6 {[%clk
0:02:43.7]} 17. Rad1 {[%clk 0:02:30.4]} 17... Nc4 {[%clk 0:02:06.8]} 18. Qe2
{[%clk 0:02:30.4]} 18... b5 {[%clk 0:02:07]} 19. g3 {[%clk 0:02:30.4]} 19...
Rfe8 {[%clk 0:01:41.9]} 20. Bd3 {[%clk 0:02:26]} 20... a3 {[%clk 0:01:17.3]} 21.
Bxc4 {[%clk 0:02:20.5]} 21... bxc4 {[%clk 0:01:18.2]} 22. Qxc4 {[%clk
0:02:20.7]} 22... axb2 {[%clk 0:01:18.4]} 23. Rb1 {[%clk 0:02:13.3]} 23... Ra3
{[%clk 0:00:36.9]} 24. Bd2 {[%clk 0:02:02.8]} 24... Rb8 {[%clk 0:00:36.1]} 25.
Re2 {[%clk 0:01:51]} 25... Qa7 {[%clk 0:00:29.1]} 26. Ne1 {[%clk 0:00:55.4]}
26... Rxa2 {[%clk 0:00:28.9]} 27. Nc2 {[%clk 0:00:56]} 27... Qa4 {[%clk
0:00:13.3]} 28. Nb4 {[%clk 0:00:48.9]} 28... Nxb4 {[%clk 0:00:10.5]} 29. cxb4
{[%clk 0:00:47.9]} 29... Qa6 {[%clk 0:00:04.7]} 30. Qxa6 {[%clk 0:00:46.8]}
30... Rxa6 {[%clk 0:00:05.6]} 31. Rxb2 {[%clk 0:00:47.3]} 31... Bxd4 {[%clk
0:00:05.1]} 32. Rc2 {[%clk 0:00:47.8]} 32... Rb5 {[%clk 0:00:03.4]} 33. Re4
{[%clk 0:00:47.7]} 33... e5 {[%clk 0:00:03.4]} 34. Kg2 {[%clk 0:00:48.1]} 34...
f5 {[%clk 0:00:03.7]} 35. Re1 {[%clk 0:00:48]} 35... Kf7 {[%clk 0:00:03.9]} 36.
Rec1 {[%clk 0:00:48.3]} 36... Rbb6 {[%clk 0:00:04.2]} 37. Rc4 {[%clk 0:00:45.8]}
37... Ke6 {[%clk 0:00:04]} 38. f4 {[%clk 0:00:46.1]} 38... Ra2 {[%clk
0:00:03.8]} 39. R1c2 {[%clk 0:00:43.7]} 39... Rxc2 {[%clk 0:00:03.5]} 40. Rxc2
{[%clk 0:00:44.6]} 40... e4 {[%clk 0:00:03.9]} 41. Kf1 {[%clk 0:00:44.2]} 41...
Kd5 {[%clk 0:00:04.3]} 42. Ke2 {[%clk 0:00:44.3]} 42... Ra6 {[%clk 0:00:04.7]}
43. g4 {[%clk 0:00:41.8]} 43... Ra3 {[%clk 0:00:05.1]} 44. gxf5 {[%clk
0:00:41.3]} 44... gxf5 {[%clk 0:00:06]} 45. h4 {[%clk 0:00:39.9]} 45... Rh3
{[%clk 0:00:06.4]} 46. b5 {[%clk 0:00:40.3]} 46... cxb5 {[%clk 0:00:06.1]} 47.
Rc8 {[%clk 0:00:40.9]} 47... Rxh4 {[%clk 0:00:05.9]} 48. Rd8+ {[%clk 0:00:40.9]}
48... Kc4 {[%clk 0:00:06.3]} 49. Rc8+ {[%clk 0:00:40.2]} 49... Kb3 {[%clk
0:00:06.9]} 50. Rd8 {[%clk 0:00:40]} 50... Rh2+ {[%clk 0:00:07.5]} 51. Kd1
{[%clk 0:00:39.8]} 51... Kc4 {[%clk 0:00:08.4]} 52. Rc8+ {[%clk 0:00:39.2]}
52... Kd3 {[%clk 0:00:08.6]} 53. Rd8 {[%clk 0:00:38.3]} 53... Rxd2+ {[%clk
0:00:08]} 54. Kc1 {[%clk 0:00:37.9]} 54... e3 {[%clk 0:00:08.9]} 55. Re8 {[%clk
0:00:37.2]} 55... e2 {[%clk 0:00:08.5]} 56. Kb1 {[%clk 0:00:37.8]} 56... Rd1+
{[%clk 0:00:08.7]} 57. Ka2 {[%clk 0:00:38.3]} 57... e1=Q {[%clk 0:00:09.2]} 58.
Re3+ {[%clk 0:00:37.8]} 58... Kxe3 {[%clk 0:00:07.2]} 59. Kb3 {[%clk 0:00:38.3]}
59... Qc3+ {[%clk 0:00:07.5]} 60. Ka2 {[%clk 0:00:39]} 60... Ra1# {[%clk
0:00:08]} 0-1

[Event "*** Titled Tuesday Blitz"]
[Site "Chess.com"]
[Date "2020.12.01"]
[Round "6"]
[White "Ajedrez_con_German"]
[Black "rududuyk"]
[Result "0-1"]
[WhiteElo "2458"]
[BlackElo "2238"]
[TimeControl "180+1"]
[EndTime "11:05:30 PST"]
[Termination "rududuyk won by resignation"]

1. d4 {[%clk 0:03:00.9]} 1... e6 {[%clk 0:02:59.8]} 2. Nf3 {[%clk 0:02:53.6]}
2... f5 {[%clk 0:02:59.7]} 3. g3 {[%clk 0:02:52.2]} 3... Nf6 {[%clk 0:03:00]} 4.
Bg2 {[%clk 0:02:51.5]} 4... d6 {[%clk 0:02:59.8]} 5. O-O {[%clk 0:02:49.7]} 5...
Be7 {[%clk 0:02:59.7]} 6. c4 {[%clk 0:02:49.3]} 6... O-O {[%clk 0:02:59.8]} 7.
Nc3 {[%clk 0:02:47.8]} 7... Ne4 {[%clk 0:03:00.2]} 8. Qc2 {[%clk 0:02:42.5]}
8... Nxc3 {[%clk 0:02:59.7]} 9. bxc3 {[%clk 0:02:40.9]} 9... Nc6 {[%clk
0:02:56.1]} 10. e4 {[%clk 0:02:39.1]} 10... e5 {[%clk 0:02:52]} 11. dxe5 {[%clk
0:02:21.9]} 11... dxe5 {[%clk 0:02:52.9]} 12. exf5 {[%clk 0:01:50.4]} 12... Bxf5
{[%clk 0:02:48.1]} 13. Qb3 {[%clk 0:01:50.2]} 13... Rb8 {[%clk 0:01:29.3]} 14.
Ba3 {[%clk 0:01:27.7]} 14... Bxa3 {[%clk 0:01:19]} 15. Qxa3 {[%clk 0:01:27.6]}
15... Bg4 {[%clk 0:01:15.2]} 16. Ne1 {[%clk 0:00:40.7]} 16... Be2 {[%clk
0:01:11.4]} 17. Qc5 {[%clk 0:00:32]} 17... Bxf1 {[%clk 0:01:07.4]} 18. Kxf1
{[%clk 0:00:30]} 18... Qf6 {[%clk 0:01:04.8]} 19. Rd1 {[%clk 0:00:23.9]} 19...
Kh8 {[%clk 0:00:57.6]} 20. Qe3 {[%clk 0:00:19.3]} 20... Na5 {[%clk 0:00:52.8]}
21. c5 {[%clk 0:00:14.6]} 21... Rbd8 {[%clk 0:00:44]} 22. Rxd8 {[%clk
0:00:13.9]} 22... Rxd8 {[%clk 0:00:43.4]} 23. h3 {[%clk 0:00:12.2]} 23... Nc4
{[%clk 0:00:31.4]} 24. Qe2 {[%clk 0:00:10.8]} 24... Qa6 {[%clk 0:00:19.9]} 25.
Kg1 {[%clk 0:00:09.8]} 25... Rd2 {[%clk 0:00:17.1]} 26. Qf3 {[%clk 0:00:08.3]}
26... Qf6 {[%clk 0:00:12.4]} 27. Qxf6 {[%clk 0:00:06]} 27... gxf6 {[%clk
0:00:13.3]} 28. Bxb7 {[%clk 0:00:05.7]} 28... Rxa2 {[%clk 0:00:13]} 29. Bd5
{[%clk 0:00:04.7]} 29... Ra1 {[%clk 0:00:12.4]} 30. Kf1 {[%clk 0:00:05]} 30...
Nb2 {[%clk 0:00:10.1]} 31. Ke2 {[%clk 0:00:05.1]} 31... a5 {[%clk 0:00:09.2]}
32. Nf3 {[%clk 0:00:05]} 32... a4 {[%clk 0:00:08.6]} 33. Nd2 {[%clk 0:00:05.2]}
33... a3 {[%clk 0:00:07.8]} 34. Nb3 {[%clk 0:00:05.5]} 34... Rb1 {[%clk
0:00:04.8]} 35. Na5 {[%clk 0:00:05.3]} 35... Na4 {[%clk 0:00:03.7]} 36. Kd3
{[%clk 0:00:04.2]} 36... Rc1 {[%clk 0:00:03.2]} 37. Kd2 {[%clk 0:00:04.4]} 37...
Rxc3 {[%clk 0:00:03]} 38. Bb3 {[%clk 0:00:03.7]} 38... Rxc5 {[%clk 0:00:02.8]}
39. Bxa4 {[%clk 0:00:03.4]} 39... Rxa5 {[%clk 0:00:03.4]} 40. Bb3 {[%clk
0:00:03.3]} 40... a2 {[%clk 0:00:03.8]} 0-1

[Event "*** Titled Tuesday Blitz"]
[Site "Chess.com"]
[Date "2020.12.01"]
[Round "6"]
[White "javirec"]
[Black "GMStefanova"]
[Result "0-1"]
[WhiteElo "2367"]
[BlackElo "2535"]
[TimeControl "180+1"]
[EndTime "11:05:31 PST"]
[Termination "GMStefanova won on time"]

1. e4 {[%clk 0:02:58.9]} 1... e5 {[%clk 0:02:59.3]} 2. Nf3 {[%clk 0:02:56.4]}
2... Nc6 {[%clk 0:02:59.5]} 3. Bb5 {[%clk 0:02:56.4]} 3... a6 {[%clk 0:02:59.3]}
4. Ba4 {[%clk 0:02:56.5]} 4... Nge7 {[%clk 0:02:59.4]} 5. c3 {[%clk 0:02:54.8]}
5... g6 {[%clk 0:02:58.1]} 6. d4 {[%clk 0:02:54.6]} 6... exd4 {[%clk 0:02:56.2]}
7. cxd4 {[%clk 0:02:54.2]} 7... b5 {[%clk 0:02:55.8]} 8. Bb3 {[%clk 0:02:49.1]}
8... Bg7 {[%clk 0:02:52.5]} 9. Nc3 {[%clk 0:02:48.1]} 9... O-O {[%clk
0:02:51.1]} 10. O-O {[%clk 0:02:46.6]} 10... d6 {[%clk 0:02:49.5]} 11. h3 {[%clk
0:02:45.6]} 11... Na5 {[%clk 0:02:43.5]} 12. Bc2 {[%clk 0:02:45.3]} 12... c5
{[%clk 0:02:43.5]} 13. Bg5 {[%clk 0:02:26.8]} 13... h6 {[%clk 0:02:24.6]} 14.
Bh4 {[%clk 0:02:23.5]} 14... cxd4 {[%clk 0:01:40.6]} 15. Nxd4 {[%clk 0:02:16.9]}
15... Qd7 {[%clk 0:01:37.7]} 16. Rc1 {[%clk 0:01:56.9]} 16... Bb7 {[%clk
0:01:31.4]} 17. Bb1 {[%clk 0:01:52.6]} 17... Rac8 {[%clk 0:01:28]} 18. Bg3
{[%clk 0:01:07.2]} 18... Nc4 {[%clk 0:01:23.6]} 19. b3 {[%clk 0:01:07]} 19...
Na3 {[%clk 0:01:22.8]} 20. Re1 {[%clk 0:00:58.9]} 20... Nxb1 {[%clk 0:01:21]}
21. Nxb1 {[%clk 0:00:54.5]} 21... Rxc1 {[%clk 0:01:20.7]} 22. Qxc1 {[%clk
0:00:55.4]} 22... Bxd4 {[%clk 0:01:20.4]} 23. Qxh6 {[%clk 0:00:56.1]} 23... Bg7
{[%clk 0:01:19.7]} 24. Qh4 {[%clk 0:00:54.2]} 24... Nc6 {[%clk 0:01:14.6]} 25.
Rd1 {[%clk 0:00:47.7]} 25... Ne5 {[%clk 0:01:03]} 26. f4 {[%clk 0:00:42]} 26...
Nc6 {[%clk 0:01:01.3]} 27. Nd2 {[%clk 0:00:42.1]} 27... Qd8 {[%clk 0:01:00]} 28.
Qg4 {[%clk 0:00:38.5]} 28... Nd4 {[%clk 0:00:59.3]} 29. f5 {[%clk 0:00:29.8]}
29... Bc8 {[%clk 0:00:37.5]} 30. Rf1 {[%clk 0:00:25.1]} 30... Qa5 {[%clk
0:00:25]} 31. Nf3 {[%clk 0:00:18.9]} 31... gxf5 {[%clk 0:00:18.6]} 32. Qh5
{[%clk 0:00:13.2]} 32... Ne2+ {[%clk 0:00:17.9]} 33. Kh2 {[%clk 0:00:12.1]}
33... Nxg3 {[%clk 0:00:18]} 34. Kxg3 {[%clk 0:00:12.2]} 34... Qc3 {[%clk
0:00:12.7]} 35. exf5 {[%clk 0:00:07.1]} 35... Bb7 {[%clk 0:00:10.4]} 36. Kh2
{[%clk 0:00:04.2]} 36... Bxf3 {[%clk 0:00:10.3]} 37. Rxf3 {[%clk 0:00:05.1]}
37... Qf6 {[%clk 0:00:09.7]} 38. Rg3 {[%clk 0:00:03.4]} 38... Re8 {[%clk
0:00:09.2]} 39. Rg4 {[%clk 0:00:03.6]} 39... Re1 {[%clk 0:00:07.8]} 40. Rh4
{[%clk 0:00:01.4]} 40... Qe5+ {[%clk 0:00:07.8]} 41. g3 {[%clk 0:00:02]} 41...
Qb2+ {[%clk 0:00:05.5]} 0-1